bitfinex/quotes_BTCUSD_20250829
["timestamp","ask_amount","ask_price","bid_price","bid_amount"]
[1756452462633,0.01030655,110440.0,110430.0,0.42729835]
[1756452462830,0.01030655,110440.0,110430.0,0.24574403]
[1756452463314,0.01130655,110440.0,110430.0,0.41642403]
[1756452463527,0.01130655,110440.0,110430.0,0.24574403]
[1756452463723,0.01030655,110440.0,110430.0,0.41642403]
[1756452464084,0.01030655,110440.0,110430.0,0.4064998]
[1756452464293,0.00830655,110440.0,110430.0,0.4064998]
[1756452464718,0.56522967,110450.0,110440.0,0.1810938]
[1756452464968,0.57367102,110450.0,110440.0,0.1830538]
[1756452465348,0.57564102,110450.0,110440.0,0.1830538]
[1756452465985,0.57664102,110450.0,110440.0,0.1830538]
[1756452466165,0.57467102,110450.0,110440.0,0.00196]
[1756452466378,0.57567102,110450.0,110440.0,0.00489]
[1756452466592,0.57764102,110450.0,110440.0,0.00196]
[1756452467015,0.56317102,110450.0,110440.0,0.00196]
[1756452468561,0.5210938,110440.0,110430.0,0.39920068]
[1756452468779,0.52939171,110440.0,110430.0,0.40131068]
[1756452469223,0.00829791,110440.0,110430.0,0.489487]
[1756452470026,0.00829791,110440.0,110430.0,0.490487]
[1756452471535,0.00829791,110440.0,110430.0,0.319927]
[1756452471729,0.00829791,110440.0,110430.0,0.490487]
[1756452473943,0.00829791,110440.0,110430.0,0.490407]
[1756452475107,0.01764344,110450.0,110440.0,0.1810938]
[1756452475306,0.02593468,110450.0,110440.0,0.26939012]
[1756452475507,0.02593468,110450.0,110440.0,0.44194012]
[1756452476722,0.02593468,110450.0,110440.0,0.44495012]
[1756452477150,0.02693468,110450.0,110440.0,1.27553989]
[1756452477300,0.02693468,110450.0,110440.0,0.27451012]
[1756452477510,0.02693468,110450.0,110440.0,0.44495012]
[1756452477734,0.02693468,110450.0,110440.0,0.47217112]
[1756452478114,0.02593468,110450.0,110440.0,0.47217112]
[1756452478539,0.02594956,110450.0,110440.0,0.47517112]
[1756452478761,0.01764344,110450.0,110440.0,0.47517112]
[1756452479343,0.01977344,110450.0,110440.0,0.46997112]
[1756452479628,0.02287344,110450.0,110440.0,0.44075012]
[1756452479829,0.02287344,110450.0,110440.0,0.27039012]
[1756452480179,0.02287344,110450.0,110440.0,0.43975012]
[1756452480384,0.20395085,110450.0,110440.0,0.43975012]
[1756452480533,0.02287344,110450.0,110440.0,0.43975012]
[1756452480741,0.02287344,110450.0,110440.0,0.44186012]
[1756452480941,0.03118934,110450.0,110440.0,0.44386012]
[1756452481174,0.03118934,110450.0,110440.0,0.44375012]
[1756452481374,0.03118934,110450.0,110440.0,0.44175012]
[1756452481576,0.03118934,110450.0,110440.0,0.43975012]
[1756452482005,0.03118934,110450.0,110440.0,0.44286012]
[1756452482140,0.03118934,110450.0,110440.0,0.44386012]
[1756452482338,0.02808934,110450.0,110440.0,0.27350012]
[1756452482629,0.02808934,110450.0,110440.0,0.44386012]
[1756452483801,0.02595934,110450.0,110440.0,0.44386012]
[1756452484567,0.02595934,110450.0,110440.0,0.44687012]
[1756452484788,0.01764344,110450.0,110440.0,1.44781989]
[1756452485005,0.01764344,110450.0,110440.0,0.44679012]
[1756452485383,0.01764344,110450.0,110440.0,1.47144729]
[1756452486242,0.01764344,110450.0,110440.0,1.47140729]
[1756452486615,0.01764344,110450.0,110440.0,1.54234611]
[1756452487020,0.01764344,110450.0,110440.0,1.54230611]
[1756452487477,0.01764344,110450.0,110440.0,1.51826557]
[1756452487691,0.01764344,110450.0,110440.0,1.34806557]
[1756452487816,0.01764344,110450.0,110440.0,1.51826557]
[1756452488261,0.02596966,110450.0,110440.0,1.51826557]
[1756452488483,0.01764344,110450.0,110440.0,1.51826557]
[1756452488935,0.01764344,110450.0,110440.0,1.54548457]
[1756452489300,0.01764344,110450.0,110440.0,1.54544457]
[1756452489815,0.01714344,110450.0,110440.0,1.54544457]
[1756452490022,0.01714344,110450.0,110440.0,0.54482794]
[1756452490226,0.01714344,110450.0,110440.0,1.54544457]
[1756452492318,0.01714344,110450.0,110440.0,1.88544457]
[1756452492527,0.01714344,110450.0,110440.0,1.93544457]
[1756452492980,0.01714344,110450.0,110440.0,1.88544457]
[1756452493178,0.01714344,110450.0,110440.0,1.93544457]
[1756452493723,0.01714344,110450.0,110440.0,0.93482794]
[1756452494081,0.01714344,110450.0,110440.0,1.88544457]
[1756452494282,0.0031,110490.0,110440.0,1.93544457]
[1756452494447,0.0031,110490.0,110480.0,0.18102824]
[1756452494448,0.01190139,110490.0,110480.0,0.18102824]
[1756452494660,0.01190139,110490.0,110480.0,0.43936456]
[1756452495007,0.01403139,110490.0,110480.0,0.43936456]
[1756452495772,0.01403139,110490.0,110480.0,0.44147456]
[1756452495977,0.01403139,110490.0,110480.0,0.43936456]
[1756452496761,0.01403139,110490.0,110480.0,0.26932456]
[1756452496965,0.01403139,110490.0,110480.0,0.08829632]
[1756452496966,0.19504324,110490.0,110480.0,0.08829632]
[1756452497169,0.18102824,110480.0,110460.0,0.2173011]
[1756452497402,0.18627462,110470.0,110460.0,0.027214]
[1756452497602,0.19459437,110470.0,110460.0,0.027214]
[1756452497804,0.18107669,110460.0,110440.0,0.36010715]
[1756452498007,0.18630741,110450.0,110440.0,0.44840347]
[1756452498262,0.19462716,110450.0,110430.0,0.33150919]
[1756452498467,0.1842538,110440.0,110430.0,0.35016551]
[1756452498673,0.01360857,110440.0,110430.0,0.49290251]
[1756452499247,0.01360857,110440.0,110430.0,0.49304595]
[1756452500097,0.00529,110440.0,110430.0,0.49304595]
[1756452500483,0.00529,110440.0,110430.0,0.49519595]
[1756452501450,0.00316,110450.0,110440.0,0.18108017]
[1756452501650,0.00529,110450.0,110440.0,0.27152649]
[1756452501858,0.19841747,110470.0,110440.0,0.27152649]
[1756452501859,0.00316,110460.0,110450.0,0.181063]
[1756452502058,0.00529,110460.0,110450.0,0.350983]
[1756452502263,0.01361055,110460.0,110450.0,0.350983]
[1756452502399,0.01361055,110460.0,110450.0,0.181063]
[1756452502602,0.19467156,110460.0,110450.0,0.350943]
[1756452503373,0.01361055,110460.0,110450.0,0.350943]
[1756452503778,0.01361055,110460.0,110450.0,0.349943]
[1756452504595,0.01361055,110460.0,110450.0,0.180063]
[1756452504820,0.19667156,110460.0,110440.0,0.27843118]
[1756452505022,0.1810938,110440.0,110430.0,0.00014344]
[1756452505444,0.36454615,110440.0,110430.0,0.00014344]
[1756452506244,0.70454615,110440.0,110430.0,0.00014344]
[1756452506451,0.88113879,110440.0,110430.0,0.00014344]
[1756452507470,0.87281644,110440.0,110430.0,0.00014344]
[1756452507707,0.8811287,110440.0,110430.0,0.00014344]
[1756452507912,0.89775226,110440.0,110430.0,0.00014344]
[1756452508315,0.8811287,110440.0,110430.0,0.00014344]
[1756452508488,0.8811287,110440.0,110430.0,0.00314344]
[1756452508745,0.8811287,110440.0,110430.0,0.00014344]
[1756452509930,0.8811287,110440.0,110390.0,0.07063082]
[1756452509931,0.5211266,110420.0,110390.0,0.07063082]
[1756452510143,0.18115942,110400.0,110390.0,0.07071724]
[1756452510352,0.18328942,110400.0,110390.0,0.07071724]
[1756452510552,0.18644942,110400.0,110390.0,0.07071724]
[1756452510979,0.27474574,110400.0,110390.0,0.07071724]
[1756452511312,0.61474574,110400.0,110390.0,0.07071724]
[1756452512196,0.70304206,110400.0,110390.0,0.00208642]
[1756452512541,0.70304206,110400.0,110390.0,8.642e-05]
[1756452512741,0.70304206,110400.0,110390.0,0.00108642]
[1756452513572,0.69304206,110400.0,110390.0,0.00108642]
[1756452514362,0.60474574,110400.0,110390.0,0.00108642]
[1756452514547,0.77442574,110400.0,110390.0,0.00108642]
[1756452515040,0.60474574,110400.0,110390.0,0.00108642]
[1756452515169,0.77442574,110400.0,110390.0,8.642e-05]
[1756452515576,0.77542574,110400.0,110390.0,8.642e-05]
[1756452515997,0.77442574,110400.0,110390.0,8.642e-05]
[1756452516289,0.77442574,110400.0,110390.0,0.00108642]
[1756452517351,0.68608942,110400.0,110390.0,0.00108642]
[1756452517835,0.51644942,110400.0,110390.0,0.00108642]
[1756452518038,0.68608942,110400.0,110390.0,0.00108642]
[1756452518491,0.51644942,110400.0,110390.0,0.00108642]
[1756452518693,0.68604942,110400.0,110390.0,0.18441225]
[1756452519237,0.68604942,110400.0,110390.0,0.00323642]
[1756452519865,0.68288942,110400.0,110390.0,0.00323642]
[1756452521153,0.68604942,110400.0,110390.0,0.00323642]
[1756452521901,0.68288942,110400.0,110390.0,0.00323642]
[1756452522962,0.68604942,110400.0,110390.0,0.00323642]
[1756452523544,0.19334293,110420.0,110400.0,0.18115942]
[1756452523749,0.40299383,110420.0,110400.0,0.18439942]
[1756452524010,0.52114301,110410.0,110400.0,0.18439942]
[1756452524156,0.34,110410.0,110400.0,0.18654942]
[1756452525823,0.341,110410.0,110400.0,0.18654942]
[1756452526037,0.001,110410.0,110400.0,0.18654942]
[1756452526565,0.001,110410.0,110400.0,0.17482617]
[1756452526777,0.0005472,110410.0,110400.0,0.17663902]
[1756452527185,0.18169021,110410.0,110400.0,0.17663902]
[1756452527388,0.18169021,110410.0,110400.0,0.17339902]
[1756452527615,0.35583301,110410.0,110390.0,0.34018939]
[1756452527806,0.35583301,110410.0,110390.0,0.50958939]
[1756452528016,0.35583301,110410.0,110400.0,0.002]
[1756452528225,0.35583301,110410.0,110400.0,0.005]
[1756452528633,0.35583301,110410.0,110400.0,0.002]
[1756452528779,0.18115942,110400.0,110390.0,8.642e-05]
[1756452529001,0.18115942,110400.0,110390.0,0.00208642]
[1756452529364,0.18637942,110400.0,110390.0,0.00208642]
[1756452529671,0.18637942,110400.0,110390.0,8.642e-05]
[1756452530500,0.18637942,110400.0,110390.0,0.18126225]
[1756452530904,0.18637942,110400.0,110390.0,0.18026225]
[1756452531684,0.18637942,110400.0,110390.0,0.003]
[1756452532652,0.18637942,110400.0,110390.0,0.006]
[1756452533555,0.18637942,110400.0,110390.0,0.003]
[1756452533962,0.18637942,110400.0,110380.0,0.19025145]
[1756452534159,0.18652269,110400.0,110380.0,0.19025145]
[1756452534362,0.18652269,110400.0,110390.0,0.002]
[1756452534765,0.18652269,110400.0,110380.0,0.19025145]
[1756452534970,0.18652269,110400.0,110390.0,0.002]
[1756452535254,0.24113498,110400.0,110380.0,0.19225145]
[1756452535469,0.18652269,110400.0,110380.0,0.19225145]
[1756452535624,0.00324,110390.0,110380.0,0.19225145]
[1756452536143,0.00522,110390.0,110380.0,0.19421145]
[1756452536989,0.00522,110390.0,110380.0,0.19521145]
[1756452538382,0.00522,110390.0,110380.0,0.19821145]
[1756452539139,0.00198,110390.0,110380.0,0.19821145]
[1756452539868,0.32058394,110410.0,110380.0,0.19821145]
[1756452540062,0.18399003,110400.0,110380.0,0.20140472]
[1756452540286,0.18115942,110400.0,110380.0,0.20140472]
[1756452540871,0.1859867,110390.0,110380.0,0.01115327]
[1756452541085,0.18315583,110390.0,110380.0,0.00810327]
[1756452541480,0.18315583,110390.0,110380.0,0.00314327]
[1756452541699,0.18315583,110390.0,110380.0,0.18133551]
[1756452541905,0.18315583,110390.0,110380.0,0.18734551]
[1756452541906,0.00198,110390.0,110380.0,0.18734551]
[1756452542058,0.00283087,110390.0,110380.0,0.18834551]
[1756452542434,0.00283087,110390.0,110380.0,0.18734551]
[1756452542840,0.52115942,110400.0,110390.0,0.18117583]
[1756452543039,0.50904,110400.0,110390.0,0.18618583]
[1756452543279,0.34,110400.0,110390.0,0.18618583]
[1756452544495,0.32022394,110410.0,110390.0,0.18618583]
[1756452544694,0.66854472,110410.0,110390.0,0.18618583]
[1756452545021,0.66854472,110410.0,110390.0,0.18818583]
[1756452545144,0.66854472,110410.0,110400.0,0.00305]
[1756452545346,0.66854472,110410.0,110400.0,0.00501]
[1756452545574,0.67052472,110410.0,110400.0,0.00501]
[1756452545779,0.67052472,110410.0,110400.0,0.00196]
[1756452546631,0.18115942,110400.0,110390.0,0.18422583]
[1756452546997,0.18115942,110400.0,110390.0,0.18618583]
[1756452547597,0.18115942,110400.0,110390.0,0.18718583]
[1756452548311,0.47115942,110400.0,110390.0,0.18618583]
[1756452549340,0.47115942,110400.0,110390.0,0.18818583]
[1756452549909,0.47115942,110400.0,110390.0,0.19018583]
[1756452550589,0.29,110400.0,110390.0,0.27848215]
[1756452551102,0.29,110400.0,110390.0,0.44732215]
[1756452551885,0.47115942,110400.0,110390.0,0.44732215]
[1756452552085,0.47313942,110400.0,110390.0,0.17284]
[1756452552287,0.47637942,110400.0,110390.0,0.004]
[1756452552630,0.48470922,110400.0,110390.0,0.004]
[1756452553635,0.47313942,110400.0,110390.0,0.004]
[1756452556240,0.64189942,110400.0,110390.0,0.004]
[1756452556587,0.64513942,110400.0,110390.0,0.004]
[1756452557146,0.64189942,110400.0,110390.0,0.00596]
[1756452557316,0.64189942,110400.0,110390.0,0.00822469]
[1756452557726,0.64189942,110400.0,110390.0,0.004]
[1756452557727,0.64513942,110400.0,110390.0,0.004]
[1756452558285,0.650232,110400.0,110390.0,0.004]
[1756452560746,0.63975942,110400.0,110390.0,0.01143469]
[1756452561204,0.29,110400.0,110390.0,0.34927297]
[1756452561330,0.45856,110400.0,110390.0,0.34927297]
[1756452563103,0.63971942,110400.0,110390.0,0.34927297]
[1756452563303,0.47115942,110400.0,110390.0,0.34927297]
[1756452567393,0.63959942,110400.0,110390.0,0.34927297]
[1756452568618,0.63899942,110400.0,110390.0,0.34927297]
[1756452572919,0.63899942,110400.0,110390.0,0.16809714]
[1756452573283,0.28944,110400.0,110390.0,0.34927297]
[1756452573489,0.47059942,110400.0,110390.0,0.34927297]
[1756452576227,0.89495576,110400.0,110390.0,0.004]
[1756452576431,0.81594942,110400.0,110390.0,0.004]
[1756452584483,0.91881605,110400.0,110390.0,1e-08]
[1756452584603,0.9104902,110400.0,110390.0,1e-08]
[1756452584993,0.93142902,110400.0,110390.0,1e-08]
[1756452585196,0.95867402,110400.0,110390.0,1e-08]
[1756452585508,0.18117583,110390.0,110380.0,0.00014327]
[1756452585731,0.81707215,110390.0,110380.0,0.00014327]
[1756452585934,0.82242215,110390.0,110380.0,0.00014327]
[1756452586503,0.82605515,110390.0,110380.0,0.00014327]
[1756452587405,0.82605515,110390.0,110380.0,0.00214327]
[1756452587543,0.91435147,110390.0,110380.0,0.00414327]
[1756452588787,0.74643147,110390.0,110380.0,0.00414327]
[1756452588993,0.91427147,110390.0,110380.0,0.00414327]
[1756452589796,1.25427147,110390.0,110380.0,0.00414327]
[1756452590003,1.26050479,110390.0,110380.0,0.00414327]
[1756452590799,1.26050479,110390.0,110380.0,0.00214327]
[1756452591954,1.26050479,110390.0,110380.0,0.00014327]
[1756452599011,1.26049565,110390.0,110380.0,0.00014327]
[1756452599952,1.25427147,110390.0,110380.0,0.00014327]
[1756452600152,1.26049625,110390.0,110380.0,0.00014327]
[1756452600473,0.56708129,110390.0,110380.0,0.00537327]
[1756452600687,0.72937583,110390.0,110380.0,0.00537327]
[1756452600876,0.81980215,110390.0,110380.0,0.00014327]
[1756452601084,1.15867215,110390.0,110380.0,0.00537327]
[1756452601306,1.24909847,110390.0,110380.0,0.00537327]
[1756452601526,1.25214847,110390.0,110380.0,0.00014327]
[1756452602243,1.27308729,110390.0,110380.0,0.00014327]
[1756452602451,0.18119224,110380.0,110370.0,0.001]
[1756452602603,0.77413447,110380.0,110370.0,0.001]
[1756452602797,0.86761079,110380.0,110370.0,0.001]
[1756452603412,0.84667197,110380.0,110370.0,0.001]
[1756452604508,1.18667197,110380.0,110370.0,0.001]
[1756452604719,1.20761079,110380.0,110370.0,0.001]
[1756452605569,1.20753079,110380.0,110370.0,0.001]
[1756452606126,0.95383447,110380.0,110370.0,0.001]
[1756452606332,1.12019447,110380.0,110370.0,0.001]
[1756452606759,1.12119447,110380.0,110370.0,0.001]
[1756452607204,1.12019447,110380.0,110370.0,0.001]
[1756452607771,1.12119447,110380.0,110370.0,0.001]
[1756452607975,1.20949079,110380.0,110370.0,0.001]
[1756452609106,1.2032637,110380.0,110370.0,0.001]
[1756452609294,0.67601896,110380.0,110370.0,0.00623]
[1756452609499,0.74880856,110380.0,110370.0,0.00623]
[1756452609883,1.08880856,110380.0,110370.0,0.00623]
[1756452610975,1.09093856,110380.0,110370.0,0.00623]
[1756452611153,1.10663472,110380.0,110370.0,0.00623]
[1756452611871,1.08880856,110380.0,110370.0,0.00623]
[1756452612076,0.83319224,110380.0,110370.0,0.00623]
[1756452612275,1.00039224,110380.0,110370.0,0.00623]
[1756452612426,0.4792,110380.0,110370.0,0.26033458]
[1756452612649,0.312,110380.0,110370.0,0.3463658]
[1756452613488,0.311,110380.0,110370.0,1.37232551]
[1756452613693,0.31,110380.0,110370.0,1.37232551]
[1756452613865,0.311,110380.0,110370.0,0.3463658]
[1756452614071,0.311,110380.0,110370.0,0.3473658]
[1756452614266,0.31,110380.0,110370.0,0.3473658]
[1756452614854,0.21419398,110460.0,110410.0,0.18114301]
[1756452614947,0.18113565,110450.0,110430.0,0.18110501]
[1756452615161,0.67658019,110450.0,110440.0,0.00523]
[1756452615362,0.48712,110450.0,110440.0,0.1863238]
[1756452615883,0.32,110450.0,110440.0,0.1863238]
[1756452616098,0.09779107,110450.0,110440.0,0.27462012]
[1756452616405,0.48122089,110450.0,110440.0,0.27462012]
[1756452616626,0.48335089,110450.0,110440.0,0.00211]
[1756452616826,0.1810938,110440.0,110430.0,0.00312]
[1756452617033,0.18111126,110430.0,110420.0,0.18112645]
[1756452617210,0.53111126,110430.0,110420.0,0.27465277]
[1756452617410,0.53111126,110430.0,110420.0,0.09352632]
[1756452617642,0.53111126,110430.0,110410.0,0.030349]
[1756452617643,0.1811266,110420.0,110410.0,0.030349]
[1756452617798,0.6881666,110420.0,110410.0,0.00312]
[1756452617980,0.18115942,110400.0,110390.0,0.030356]
[1756452618183,0.68819942,110400.0,110390.0,0.00312]
[1756452618384,0.18117583,110390.0,110380.0,0.00295]
[1756452618588,0.18119224,110380.0,110370.0,0.10181982]
[1756452618785,1.03819224,110380.0,110370.0,0.00593]
[1756452618975,1.04031224,110380.0,110370.0,0.00298]
[1756452619171,1.03819224,110380.0,110370.0,0.00593]
[1756452619552,1.03819224,110380.0,110370.0,0.00607335]
[1756452620112,1.03819224,110380.0,110370.0,0.00707335]
[1756452621699,0.18112687,110420.0,110400.0,0.18115433]
[1756452621922,0.27112687,110420.0,110410.0,0.00493]
[1756452622127,0.18114301,110410.0,110400.0,0.00295]
[1756452622373,0.65806301,110410.0,110390.0,0.25475359]
[1756452623112,0.65806301,110410.0,110400.0,0.001]
[1756452623312,0.18117338,110400.0,110380.0,0.18410031]
[1756452623555,0.47117338,110400.0,110380.0,0.18410031]
[1756452623754,0.47117338,110400.0,110390.0,0.001]
[1756452623955,0.47329338,110400.0,110390.0,0.001]
[1756452624474,0.47329338,110400.0,110390.0,0.18415583]
[1756452624886,0.47117338,110400.0,110390.0,0.18415583]
[1756452625717,0.29,110400.0,110390.0,0.34503297]
[1756452626187,0.291,110400.0,110390.0,0.34503297]
[1756452626732,0.29,110400.0,110390.0,0.34503297]
[1756452627221,0.29,110400.0,110390.0,1.36728042]
[1756452627381,0.29,110400.0,110390.0,1.36828042]
[1756452627581,0.29,110400.0,110390.0,1.75828042]
[1756452628772,0.29,110400.0,110390.0,1.76028042]
[1756452629336,0.29,110400.0,110390.0,1.75728042]
[1756452629673,0.29,110400.0,110390.0,1.76328042]
[1756452629876,0.29,110400.0,110390.0,1.76028042]
[1756452630305,0.29,110400.0,110390.0,1.76428042]
[1756452630707,0.29,110400.0,110390.0,1.93100042]
[1756452630909,0.29,110400.0,110390.0,1.76428042]
[1756452631108,0.29,110400.0,110390.0,1.93100042]
[1756452631314,0.29,110400.0,110390.0,1.6936496]
[1756452631519,0.29,110400.0,110390.0,1.8603296]
[1756452637058,0.29,110400.0,110390.0,0.85902097]
[1756452637520,0.29212,110400.0,110390.0,0.27647215]
[1756452637723,0.29212,110400.0,110390.0,0.44299215]
[1756452638930,0.29212,110400.0,110390.0,0.43999215]
[1756452639152,0.29,110400.0,110390.0,0.44692215]
[1756452639709,0.29,110400.0,110390.0,0.44292215]
[1756452639933,0.29,110400.0,110390.0,0.44592215]
[1756452640142,0.29,110400.0,110390.0,0.27940215]
[1756452640347,0.29212,110400.0,110390.0,0.27447215]
[1756452640504,0.29212,110400.0,110390.0,0.44095215]
[1756452640977,0.00212,110400.0,110390.0,0.44095215]
[1756452641539,0.00212,110400.0,110390.0,0.44293215]
[1756452642004,0.18327942,110400.0,110390.0,0.44095215]
[1756452642151,0.18327942,110400.0,110390.0,0.44091215]
[1756452642152,0.18629942,110400.0,110390.0,0.44091215]
[1756452642574,0.18629942,110400.0,110390.0,0.27447215]
[1756452642967,0.18629942,110400.0,110390.0,0.44091215]
[1756452643154,0.00212,110400.0,110390.0,0.43891215]
[1756452643558,0.00212,110400.0,110390.0,0.43991215]
[1756452643917,0.00212,110400.0,110390.0,0.43691215]
[1756452644122,0.00212,110400.0,110390.0,0.43989215]
[1756452645580,0.18114332,110410.0,110400.0,0.18115942]
[1756452645786,0.35980436,110420.0,110400.0,0.18115942]
[1756452645988,0.00495035,110410.0,110400.0,0.18115942]
[1756452646194,0.00283035,110410.0,110400.0,0.27438574]
[1756452646406,0.18109597,110440.0,110420.0,0.1811266]
[1756452646407,0.35047597,110440.0,110420.0,0.1811266]
[1756452646589,0.00226343,110430.0,110420.0,0.3474866]
[1756452646803,0.18620347,110430.0,110410.0,0.18408186]
[1756452646997,0.18639363,110430.0,110420.0,0.1811266]
[1756452647793,0.18839363,110430.0,110420.0,0.1811266]
[1756452648199,0.18639363,110430.0,110420.0,0.1811266]
[1756452648618,0.18337363,110430.0,110420.0,0.1811266]
[1756452651080,0.18337363,110430.0,110410.0,0.43574818]
[1756452651423,0.18337363,110430.0,110420.0,0.1811266]
[1756452652652,0.18631363,110430.0,110410.0,0.26942818]
[1756452652852,0.18114301,110410.0,110390.0,0.18117583]
[1756452653065,0.00212,110400.0,110390.0,0.50846297]
[1756452654058,0.18114301,110410.0,110390.0,0.50846297]
[1756452654274,0.18114301,110410.0,110400.0,0.18342391]
[1756452654459,0.18114301,110410.0,110400.0,0.18115942]
[1756452654662,0.18326301,110410.0,110400.0,0.18115942]
[1756452655026,0.18326301,110410.0,110400.0,0.18331942]
[1756452656232,0.18326301,110410.0,110400.0,0.18115942]
[1756452657073,0.19018293,110420.0,110400.0,0.18331942]
[1756452657407,0.70462778,110420.0,110400.0,0.18651942]
[1756452658255,0.69630293,110420.0,110400.0,0.18651942]
[1756452658922,0.69730293,110420.0,110400.0,0.18651942]
[1756452659126,0.00283035,110410.0,110400.0,0.18651942]
[1756452659960,0.69830293,110420.0,110400.0,0.18651942]
[1756452660645,0.69730293,110420.0,110400.0,0.18651942]
[1756452660849,0.69630293,110420.0,110400.0,0.18651942]
[1756452661247,0.18609336,110410.0,110400.0,0.34935942]
[1756452661448,0.18326301,110410.0,110400.0,0.34719942]
[1756452661684,0.00014343,110430.0,110420.0,0.1811266]
[1756452661871,0.00847064,110430.0,110420.0,0.1864866]
[1756452662073,0.00014343,110430.0,110420.0,0.3524866]
[1756452662855,0.00297327,110430.0,110420.0,0.3524866]
[1756452663697,0.00014343,110430.0,110420.0,0.3514866]
[1756452664232,0.00297327,110430.0,110420.0,0.3514866]
[1756452664810,0.00014343,110430.0,110420.0,0.3514866]
[1756452666472,0.00014343,110430.0,110420.0,1.44109155]
[1756452666687,0.00014343,110430.0,110420.0,1.29603037]
[1756452666878,0.00014343,110430.0,110420.0,0.46064174]
[1756452667934,0.00014343,110430.0,110420.0,0.46364174]
[1756452668735,0.00014343,110430.0,110420.0,1.46495037]
[1756452669159,0.00014343,110430.0,110420.0,1.46695037]
[1756452670231,0.00014343,110430.0,110420.0,1.30103037]
[1756452670439,0.00014343,110430.0,110420.0,1.46683037]
[1756452670861,0.00014343,110430.0,110420.0,0.29972174]
[1756452671101,0.00014343,110430.0,110420.0,1.46683037]
[1756452674110,0.00014343,110430.0,110420.0,1.30103037]
[1756452674336,0.00014343,110430.0,110420.0,1.46675037]
[1756452675821,0.00014343,110430.0,110420.0,0.27878292]
[1756452676023,0.18337363,110430.0,110420.0,0.09329632]
[1756452676229,0.1827629,110440.0,110420.0,0.25897632]
[1756452676457,0.1830902,110430.0,110420.0,0.25893632]
[1756452677215,0.1830902,110430.0,110420.0,0.25593632]
[1756452678040,0.1830902,110430.0,110420.0,0.25393632]
[1756452678246,0.1830902,110430.0,110420.0,0.25493632]
[1756452678828,0.1830902,110430.0,110420.0,0.27042292]
[1756452679232,0.1830902,110430.0,110420.0,0.43602292]
[1756452679871,0.1830902,110430.0,110420.0,0.001]
[1756452680072,0.1830902,110430.0,110420.0,0.1666]
[1756452680247,0.1830902,110430.0,110420.0,0.001]
[1756452680462,0.1830902,110430.0,110420.0,0.16656]
[1756452680760,0.1830902,110430.0,110420.0,0.001]
[1756452680964,0.1830902,110430.0,110420.0,0.16656]
[1756452682139,0.1830902,110430.0,110420.0,0.001]
[1756452683283,0.1830902,110430.0,110420.0,0.1821266]
[1756452684371,0.00198,110430.0,110420.0,0.27244292]
[1756452684577,0.00198,110430.0,110420.0,0.44112292]
[1756452684965,0.3465829,110440.0,110420.0,0.44112292]
[1756452685170,0.1811029,110440.0,110430.0,0.1811102]
[1756452685372,0.35561789,110450.0,110430.0,0.1863302]
[1756452685650,0.1810938,110440.0,110430.0,0.1863302]
[1756452685999,0.1810938,110440.0,110430.0,0.3517702]
[1756452686204,0.35561789,110450.0,110430.0,0.1863302]
[1756452686411,0.35561789,110450.0,110430.0,0.3517702]
[1756452686613,0.001,110440.0,110430.0,0.44013984]
[1756452686817,0.001,110440.0,110430.0,1.52974479]
[1756452687226,0.001,110440.0,110430.0,0.53163616]
[1756452687431,0.52106132,110460.0,110440.0,0.18107845]
[1756452687645,0.52106132,110460.0,110440.0,0.27257477]
[1756452688199,0.52106132,110460.0,110440.0,0.27157477]
[1756452688418,0.52106132,110460.0,110440.0,0.27359477]
[1756452689536,0.52106132,110460.0,110450.0,0.18107741]
[1756452689659,0.52304132,110460.0,110450.0,0.18107741]
[1756452690723,0.18107741,110450.0,110440.0,0.27157477]
[1756452690920,0.18107741,110450.0,110440.0,0.08829632]
[1756452691124,0.34841741,110450.0,110440.0,0.08829632]
[1756452691327,0.1810938,110440.0,110420.0,0.35870293]
[1756452691490,0.1810938,110440.0,110420.0,0.28167925]
[1756452691692,0.1810938,110440.0,110410.0,0.19340016]
[1756452691693,0.1830902,110430.0,110410.0,0.19340016]
[1756452691914,0.1830902,110430.0,110420.0,0.1811266]
[1756452692528,0.1830902,110430.0,110410.0,0.47438991]
[1756452692969,0.1830902,110430.0,110410.0,0.47538991]
[1756452693743,0.3484102,110430.0,110420.0,0.002]
[1756452694195,0.3484102,110430.0,110420.0,0.1811266]
[1756452694368,0.3484102,110430.0,110420.0,0.1831466]
[1756452694897,0.3484102,110430.0,110420.0,0.1841466]
[1756452695102,0.3484102,110430.0,110420.0,0.1873466]
[1756452695889,0.1830902,110430.0,110420.0,0.1873466]
[1756452696287,0.1830902,110430.0,110420.0,0.003]
[1756452696664,0.1830902,110430.0,110420.0,0.18639068]
[1756452696875,0.1830902,110430.0,110420.0,0.1841266]
[1756452697086,0.1830902,110430.0,110420.0,0.1893466]
[1756452697276,0.1830902,110430.0,110420.0,0.00822]
[1756452697481,0.1830902,110430.0,110420.0,0.003]
[1756452698190,0.1847502,110430.0,110420.0,0.003]
[1756452698795,0.1847502,110430.0,110420.0,0.002]
[1756452698796,0.57876807,110430.0,110420.0,0.002]
[1756452698984,0.66706439,110430.0,110420.0,0.002]
[1756452699772,0.1811266,110420.0,110410.0,0.00014343]
[1756452700078,0.3463266,110420.0,110410.0,0.00014343]
[1756452700280,0.3483066,110420.0,110410.0,0.00014343]
[1756452701019,0.3499666,110420.0,110410.0,0.00014343]
[1756452701230,0.3499666,110420.0,110410.0,0.00114343]
[1756452702243,0.3483066,110420.0,110410.0,0.00114343]
[1756452705029,0.3483066,110420.0,110410.0,0.00636343]
[1756452705996,0.1652,110420.0,110410.0,0.18977072]
[1756452706249,0.3491567,110420.0,110410.0,0.18750644]
[1756452706579,0.3463266,110420.0,110410.0,0.18750644]
[1756452707326,0.5211102,110430.0,110410.0,0.25813726]
[1756452707670,0.42490849,110440.0,110420.0,0.18659068]
[1756452707820,0.42490849,110440.0,110430.0,0.00202]
[1756452708002,0.76490849,110440.0,110430.0,0.00522]
[1756452708576,0.76490849,110440.0,110430.0,0.00422]
[1756452708850,0.76704849,110440.0,110430.0,0.00422]
[1756452709510,0.76690849,110440.0,110430.0,0.1853302]
[1756452709715,0.76690849,110440.0,110430.0,0.1843302]
[1756452710245,0.004,110440.0,110430.0,0.27262652]
[1756452710666,0.004,110440.0,110430.0,0.37048234]
[1756452711093,0.16508,110450.0,110440.0,0.1810938]
[1756452711249,0.16508,110450.0,110440.0,0.27447012]
[1756452712275,0.16508,110450.0,110440.0,0.27547012]
[1756452713124,0.16508,110450.0,110440.0,0.27647012]
[1756452714383,0.25978481,110470.0,110460.0,0.18106101]
[1756452714610,0.41573258,110470.0,110460.0,0.18614101]
[1756452714840,0.19338056,110490.0,110470.0,0.18104462]
[1756452715076,0.18101349,110490.0,110480.0,0.18102824]